bitfinex/quotes_ETHUSD_20220219
["timestamp","ask_amount","ask_price","bid_price","bid_amount"]
[1645295312512,3.2168,2754.0,2752.8,0.62901318]
[1645295312513,0.00329639,2753.2,2752.8,0.62901318]
[1645295313311,0.54428026,2753.4,2752.8,0.62901318]
[1645295313713,0.00309628,2753.2,2752.8,0.62901318]
[1645295314514,0.54428026,2753.4,2752.8,0.62901318]
[1645295314768,0.00309628,2753.2,2752.8,0.62901318]
[1645295315665,0.54428026,2753.4,2752.8,0.62901318]
[1645295315865,0.54428026,2753.4,2752.9,3.5]
[1645295316066,0.00309628,2753.2,2752.9,3.5]
[1645295316566,0.00309628,2753.2,2752.8,0.62901318]
[1645295317168,0.54428026,2753.4,2752.8,0.62901318]
[1645295317370,0.00315925,2753.2,2752.6,0.68643366]
[1645295317569,0.00315925,2753.2,2752.3,0.9189189]
[1645295317570,0.00315925,2753.2,2752.5,0.68643366]
[1645295317769,0.00673172,2753.1,2752.5,0.68643366]
[1645295317970,0.91563792,2753.1,2752.2,4.18643366]
[1645295318169,0.91563792,2753.1,2752.5,0.68643366]
[1645295318425,0.47992765,2752.8,2752.4,0.68643366]
[1645295318613,0.47992765,2752.8,2752.3,0.68643366]
[1645295319215,0.47992765,2752.8,2752.2,0.68643366]
[1645295320112,0.47992765,2752.8,2752.4,0.68643366]
[1645295320711,0.47992765,2752.8,2752.5,0.68643366]
[1645295320914,0.00673172,2753.1,2752.5,0.68643366]
[1645295321115,0.00673172,2753.1,2752.4,0.68643366]
[1645295321314,0.00673172,2753.1,2752.5,3.5]
[1645295321514,0.00673172,2753.1,2752.5,4.18643366]
[1645295321714,0.00673172,2753.1,2752.7,0.68643366]
[1645295321919,0.00673172,2753.1,2752.8,0.51249645]
[1645295322567,0.0031567,2753.2,2752.8,0.51249645]
[1645295322969,1.0,2753.6,2752.8,0.51249645]
[1645295323268,0.00315683,2753.2,2752.8,0.51249645]
[1645295324066,0.90872,2753.4,2752.8,0.51249645]
[1645295324471,0.00315708,2753.2,2752.8,0.51249645]
[1645295325366,0.90872,2753.4,2752.8,0.51249645]
[1645295325567,0.00315708,2753.2,2752.8,0.51249645]
[1645295326419,0.00315708,2753.2,2752.9,4.18643366]
[1645295326613,3.2168,2754.0,2752.9,4.18643366]
[1645295326813,0.00315708,2753.2,2752.9,4.18643366]
[1645295327017,0.00315708,2753.2,2752.9,3.5]
[1645295327414,0.00315708,2753.2,2753.0,0.02032605]
[1645295327814,3.8168,2754.0,2753.0,0.02032605]
[1645295327815,0.49796332,2753.8,2753.0,0.02032605]
[1645295328813,0.49796332,2753.8,2753.1,1.54310116]
[1645295329215,0.00315695,2753.5,2753.2,0.62770024]
[1645295329415,0.49796332,2753.8,2753.5,0.00631389]
[1645295330465,0.90855,2753.9,2753.5,0.00631389]
[1645295331267,1.81712,2754.1,2753.5,0.00631389]
[1645295331480,0.6010119,2753.8,2753.5,0.00631389]
[1645295331667,0.6041687,2753.8,2753.5,0.00631389]
[1645295332770,0.6010119,2753.8,2753.5,0.00631389]
[1645295332970,0.00315683,2753.8,2753.5,0.00631389]
[1645295333809,0.90855,2753.8,2753.5,0.00631389]
[1645295334010,0.48297985,2753.7,2753.5,0.00631389]
[1645295335210,0.00315677,2753.7,2753.5,0.00631389]
[1645295336115,0.90855,2753.8,2753.5,0.00631389]
[1645295336312,1.41483945,2753.8,2753.5,0.00631389]
[1645295336513,0.00315677,2753.7,2753.5,0.00631389]
[1645295337162,0.00315677,2753.7,2753.6,0.02054939]
[1645295337363,0.90855,2753.8,2753.6,0.02054939]
[1645295337568,0.00315677,2753.7,2753.6,0.02054939]
[1645295338564,0.90855,2753.8,2753.6,0.02054939]
[1645295338964,0.91170675,2753.8,2753.6,0.02054939]
[1645295339764,0.90855,2753.8,2753.6,0.02054939]
[1645295339967,0.91170673,2753.8,2753.6,0.02054939]
[1645295340172,0.91170673,2753.8,2753.6,4.939e-05]
[1645295340173,1.51170673,2753.8,2753.6,4.939e-05]
[1645295340764,2.51170673,2753.8,2753.6,4.939e-05]
[1645295341016,0.522,2753.7,2753.6,4.939e-05]
[1645295341617,3.8313,2753.7,2753.6,4.939e-05]
[1645295341817,4.8313,2753.7,2753.6,4.939e-05]
[1645295342014,6.0196,2753.7,2753.6,4.939e-05]
[1645295342414,6.0196,2753.7,2753.5,0.00631389]
[1645295342415,6.02642361,2753.7,2753.5,0.00631389]
[1645295342614,6.93518361,2753.7,2753.5,0.00631389]
[1645295342819,1.0,2753.6,2753.5,0.00631389]
[1645295343018,1.522,2753.6,2753.5,0.00631389]
[1645295345063,0.522,2753.6,2753.5,0.00631389]
[1645295345469,1.522,2753.6,2753.5,0.00631389]
[1645295345665,0.522,2753.6,2753.5,0.00631389]
[1645295346465,0.822,2753.6,2753.5,0.00631389]
[1645295346666,1.822,2753.6,2753.5,0.00631389]
[1645295348416,0.522,2753.6,2753.5,0.00631389]
[1645295349218,6.3355229,2753.7,2753.5,0.00631389]
[1645295349520,6.33242433,2753.7,2753.5,0.00631389]
[1645295349721,5.4267975,2753.7,2753.5,0.00631389]
[1645295350522,5.42369893,2753.7,2753.5,0.00631389]
[1645295350729,0.01733893,2753.7,2753.5,0.00631389]
[1645295350932,0.02049767,2753.7,2753.5,0.00631389]
[1645295351724,0.01733893,2753.7,2753.5,0.00631389]
[1645295352167,0.01733893,2753.7,2753.5,0.00487586]
[1645295352168,0.02049767,2753.7,2753.5,0.00487586]
[1645295352961,0.9086,2753.6,2753.5,0.04388399]
[1645295353266,0.9086,2753.6,2753.5,1.58692375]
[1645295356315,0.9086,2753.6,2753.5,0.02428399]
[1645295356511,0.9086,2753.6,2753.0,0.1814]
[1645295356512,5.30488178,2753.5,2753.0,0.1814]
[1645295356711,5.30488178,2753.5,2752.4,0.68976323]
[1645295356712,0.90885,2753.3,2753.1,1.54336498]
[1645295356910,0.90884,2753.2,2752.4,0.00332957]
[1645295357309,0.90884,2753.2,2752.4,1.54674089]
[1645295357511,0.55951294,2752.7,2752.4,1.54674089]
[1645295357712,0.3,2753.2,2752.7,1.08682739]
[1645295357912,0.64915241,2752.8,2752.7,1.08682739]
[1645295358517,0.64915241,2752.8,2752.7,2.63029025]
[1645295362369,0.64915241,2752.8,2752.7,2.64799361]
[1645295365414,0.64915241,2752.8,2752.7,2.39613981]
[1645295365415,5.97115241,2752.8,2752.7,2.39613981]
[1645295365615,5.97115241,2752.8,2752.7,0.40253075]
[1645295365813,2.5,2752.7,2752.6,9.887e-05]
[1645295366014,3.5,2752.7,2752.6,9.887e-05]
[1645295366212,4.5,2752.7,2752.6,9.887e-05]
[1645295367013,0.3,2752.6,2752.3,0.00315783]
[1645295367265,1.81819,2752.5,2752.3,1.54692937]
[1645295367469,1.81819,2752.5,2752.3,1.54377154]
[1645295367668,0.46402974,2752.4,2752.3,0.0031577]
[1645295367867,0.46402974,2752.4,2752.3,1.54696694]
[1645295368667,0.46402974,2752.4,2752.3,1.54380924]
[1645295370470,0.46402974,2752.4,2752.2,0.02422679]
[1645295370925,0.46402974,2752.4,2752.3,1.54377636]
[1645295371726,0.46402974,2752.4,2752.2,0.02422682]
[1645295371922,0.46402974,2752.4,2752.3,1.54374449]
[1645295372223,0.49760934,2752.4,2752.3,1.54373792]
[1645295372427,0.9426396,2752.4,2752.2,0.00315109]
[1645295372628,0.0335796,2752.4,2752.2,0.00315109]
[1645295373427,0.0335796,2752.4,2752.0,1.54373792]
[1645295373632,0.0335796,2752.4,2752.2,0.00315109]
[1645295374672,0.0335796,2752.4,2752.0,1.54373792]
[1645295374873,0.0335796,2752.4,2752.2,0.00315109]
[1645295375071,0.0335796,2752.4,2752.2,1.54688901]
[1645295375273,0.90901,2752.3,2752.2,1.54688901]
[1645295375673,0.90901,2752.3,2752.2,0.00315109]
[1645295375874,0.90901,2752.3,2752.0,1.54379469]
[1645295376076,0.90901,2752.3,2752.1,1.54694577]
[1645295376274,0.90901,2752.3,2752.1,0.00315108]
[1645295376475,0.50820871,2752.2,2752.1,0.00315108]
[1645295377074,0.50820871,2752.2,2751.9,1.54379857]
[1645295377273,0.50820871,2752.2,2752.0,1.54379857]
[1645295377476,0.50820871,2752.2,2752.1,1.54379857]
[1645295377673,3.6363133,2752.3,2752.2,1.01641742]
[1645295377874,3.66060361,2752.3,2752.2,1.01641742]
[1645295378077,3.66060361,2752.3,2752.2,2.56019111]
[1645295378515,2.75151031,2752.3,2752.2,2.56019111]
[1645295379417,2.75151031,2752.3,2752.2,1.01641742]
[1645295379615,2.75151031,2752.3,2752.2,2.56018923]
[1645295379814,0.93330031,2752.3,2752.2,2.56018923]
[1645295380417,0.93192183,2752.3,2752.2,2.56018923]
[1645295380617,0.02291183,2752.3,2752.2,2.56018923]
[1645295382019,0.01615226,2752.3,2752.2,2.58299911]
[1645295384364,0.01615226,2752.3,2752.2,2.08299911]
[1645295391565,0.01615226,2752.3,2752.2,0.5392273]
[1645295392370,0.01615226,2752.3,2752.2,2.0830598]
[1645295394717,0.01615226,2752.3,2752.2,0.5392273]
[1645295400768,3.51615226,2752.3,2752.2,0.5392273]
[1645295401222,0.01615226,2752.3,2752.2,0.5392273]
[1645295401617,0.01615226,2752.3,2752.2,2.08317585]
[1645295403123,3.51615226,2752.3,2752.2,2.08317585]
[1645295403314,0.01615226,2752.3,2752.2,2.08317585]
[1645295404862,0.01615226,2752.3,2752.2,2.08198341]
[1645295406861,3.5,2753.2,2752.3,0.03230452]
[1645295407063,6.14955,2753.3,2752.3,0.03230452]
[1645295407064,9.34665,2753.3,2752.4,1.54394855]
[1645295407263,9.34665,2753.3,2752.9,0.46092924]
[1645295407463,2.7263805,2753.3,2752.9,0.46092924]
[1645295407664,0.90879,2753.1,2752.9,0.46092924]
[1645295407868,1.81757,2753.1,2752.9,0.46092924]
[1645295408063,1.81757,2753.1,2752.3,1.26190452]
[1645295408262,1.81757,2753.1,2752.4,1.54355319]
[1645295408263,1.8177,2753.0,2752.4,1.54355319]
[1645295408719,2.72652,2753.0,2752.4,1.54355319]
[1645295408914,0.90886,2752.9,2752.4,1.54355319]
[1645295409115,0.45246184,2752.7,2752.4,1.54355319]
[1645295409316,0.45246184,2752.6,2752.4,1.54355319]
[1645295409817,0.45246184,2752.6,2752.3,0.03520802]
[1645295409818,0.75246184,2752.6,2752.3,0.03520802]
[1645295410215,1.66140184,2752.6,2752.3,0.03520802]
[1645295410422,2.23303099,2752.6,2752.3,0.03520802]
[1645295410618,2.23303099,2752.6,2752.3,0.03230452]
[1645295410619,4.14189099,2752.6,2752.3,0.03230452]
[1645295411018,4.14189099,2752.6,2752.3,0.03520796]
[1645295411217,4.13098475,2752.6,2752.3,0.03520796]
[1645295411415,2.7272955,2752.5,2752.3,0.03520796]
[1645295411813,2.7272955,2752.5,2752.3,0.03230452]
[1645295412267,2.7272955,2752.5,2752.3,0.03520793]
[1645295412667,3.20036028,2752.5,2752.3,0.03520793]
[1645295413071,4.022,2752.4,2752.3,0.03230452]
[1645295413268,0.522,2752.4,2752.3,0.03526929]
[1645295413870,4.022,2752.4,2752.3,0.03526929]
[1645295414071,0.522,2752.4,2752.3,0.03526929]
[1645295414272,0.97446184,2752.4,2752.3,0.03230452]
[1645295414471,1.42692368,2752.4,2752.3,0.03230452]
[1645295415274,4.92692368,2752.4,2752.3,0.03230452]
[1645295415481,1.42692368,2752.4,2752.3,0.03230452]
[1645295417717,4.92692368,2752.4,2752.3,0.03230452]
[1645295418119,4.96234747,2752.4,2752.3,0.03230452]
[1645295418320,1.46234747,2752.4,2752.3,0.03230452]
[1645295418519,1.76234747,2752.4,2752.3,0.03230452]
[1645295418917,2.76234747,2752.4,2752.3,0.03230452]
[1645295419118,3.06234747,2752.4,2752.3,0.03230452]
[1645295419519,1.76234747,2752.4,2752.3,0.03230452]
[1645295422868,1.77936549,2752.4,2752.3,0.03230452]
[1645295423725,5.57936549,2752.4,2752.3,0.03230452]
[1645295423922,6.57936549,2752.4,2752.3,0.03230452]
[1645295424923,3.07936549,2752.4,2752.3,0.03230452]
[1645295425323,1.77936549,2752.4,2752.3,0.03230452]
[1645295425722,1.89097349,2752.4,2752.3,0.03230452]
[1645295426524,1.89097349,2752.4,2752.3,0.03134452]
[1645295426924,1.59097349,2752.4,2752.3,0.03134452]
[1645295436866,1.59097349,2752.4,2752.3,1.57517882]
[1645295436867,1.06897349,2752.4,2752.3,1.57517882]
[1645295437765,0.01609912,2752.5,2752.4,0.57758975]
[1645295437966,0.01609912,2752.5,2752.4,2.12142405]
[1645295442771,0.04665664,2752.5,2752.4,2.12142405]
[1645295442966,0.04665664,2752.5,2752.4,2.30302405]
[1645295443767,0.04665664,2752.5,2752.4,2.12142405]
[1645295452168,0.05892614,2752.5,2752.4,2.12142405]
[1645295457673,0.90881,2752.9,2752.8,0.51052818]
[1645295459679,1.81765,2753.1,2752.8,2.05401374]
[1645295459680,0.90874,2753.1,2752.8,2.05401374]
[1645295459877,7.4006498,2753.5,2752.8,2.05401374]
[1645295459878,1.9477,2753.5,2752.9,1.54348556]
[1645295460075,4.642,2753.6,2752.9,1.54348556]
[1645295460076,3.5,2753.6,2752.9,1.54348556]
[1645295460275,0.00335792,2753.6,2752.9,1.54348556]
[1645295460677,0.00335792,2753.6,2753.3,0.64003367]
[1645295461117,5.96133699,2754.0,2753.3,0.64003367]
[1645295461318,0.00335833,2753.6,2753.3,0.64003367]
[1645295461518,0.00335833,2753.6,2752.6,0.11785227]
[1645295461722,0.00335833,2753.6,2752.7,12.58330458]
[1645295461923,0.00335833,2753.6,2752.8,1.54330458]
[1645295462422,0.9087,2753.6,2752.9,1.54342247]
[1645295462618,0.90875,2753.4,2752.6,0.11785227]
[1645295462919,1.39289266,2753.4,2752.7,2.16621695]
[1645295463319,1.39289266,2753.4,2752.8,1.54343295]
[1645295463519,0.90875,2753.4,2752.8,1.54343295]
[1645295463718,0.90875,2753.3,2752.8,1.54343295]
[1645295464121,0.90875,2753.2,2752.8,1.54343295]
[1645295468423,0.90871,2753.4,2752.8,1.54343295]
[1645295468424,0.90863,2753.4,2752.8,1.54343295]
[1645295468623,1.8173792,2753.6,2752.8,1.54343295]
[1645295468624,0.00290226,2753.6,2752.8,1.54343295]
[1645295469523,3.03896,2753.9,2752.8,1.54343295]
[1645295469725,0.00313592,2753.6,2753.2,0.62018866]
[1645295469921,0.00313592,2753.6,2753.3,1.54343295]
[1645295470325,0.00313592,2753.6,2752.9,1.248]
[1645295470326,1.82042592,2753.6,2752.9,1.248]
[1645295470524,1.82042592,2753.6,2753.0,1.54325988]
[1645295470725,1.81729,2753.6,2753.0,1.54325988]
[1645295470925,1.32042595,2753.6,2753.1,1.54325988]
[1645295471127,1.32042595,2753.6,2753.2,1.54325988]
[1645295471327,1.32042595,2753.6,2753.3,1.54325988]
[1645295471825,1.32042595,2753.6,2752.6,5.11785227]
[1645295472026,1.31729,2753.6,2752.7,1.543193]
[1645295472269,1.32042609,2753.6,2752.7,1.543193]
[1645295472674,0.00313609,2753.6,2752.7,1.543193]
[1645295473071,0.9086,2753.5,2752.9,0.50763535]
[1645295473271,1.81724,2753.5,2753.0,1.543193]
[1645295474872,1.81724,2753.5,2753.1,1.543193]
[1645295475182,1.81757,2753.4,2752.6,0.11785227]
[1645295475373,0.90878,2753.2,2752.7,1.54341456]
[1645295475573,1.8176,2753.1,2752.7,1.54341456]
[1645295476028,2.3551818,2753.1,2752.7,1.54341456]
[1645295476331,2.3551818,2753.1,2752.6,0.11785227]
[1645295476332,0.9088392,2753.0,2752.6,0.11785227]
[1645295476527,0.9088392,2753.0,2752.7,1.54354522]
[1645295476528,3.5,2752.9,2752.7,1.54354522]
[1645295476930,3.5,2752.9,2752.6,0.11785227]
[1645295476931,0.522,2752.8,2752.6,0.11785227]
[1645295477130,3.5,2752.7,2752.6,0.11785227]
[1645295477528,4.5,2752.7,2752.6,0.11785227]
[1645295477932,4.5,2752.7,2752.3,0.03134452]
[1645295477933,3.0,2752.5,2752.3,0.03134452]
[1645295478232,3.8,2752.4,2752.3,0.03450212]
[1645295478830,4.322,2752.4,2752.3,0.03450212]
[1645295479032,4.322,2752.4,2751.6,0.01263332]
[1645295479033,5.3617,2752.3,2751.6,0.01263332]
[1645295479240,5.3617,2752.3,2751.4,0.00332957]
[1645295479241,1.27115,2752.1,2751.4,0.00332957]
[1645295479437,7.66025,2752.0,2751.6,0.01263249]
[1645295479676,7.66025,2752.0,2751.4,0.00332957]
[1645295479677,9.22863,2751.9,2751.4,0.00332957]
[1645295479875,1.522,2751.8,2751.4,0.00332957]
[1645295480099,0.47679989,2751.7,2751.4,0.00332957]
[1645295480279,3.25046,2751.6,2751.3,1.54432953]
[1645295480481,4.15998,2751.6,2751.3,0.00332957]
[1645295480675,4.15998,2751.6,2751.2,0.0137877]
[1645295480875,1.3,2751.5,2751.2,0.0137877]
[1645295481075,0.522,2751.4,2751.2,0.0137877]
[1645295481875,1.431575,2751.4,2751.2,0.0137877]
[1645295482078,1.431575,2751.4,2751.3,1.54425508]
[1645295482079,2.341125,2751.4,2751.3,1.54425508]
[1645295482276,2.341125,2751.4,2751.2,0.0137877]
[1645295482477,2.341125,2751.4,2751.3,1.54422431]
[1645295482478,0.522,2751.4,2751.3,1.54422431]
[1645295482677,1.81903,2751.5,2751.4,1.044]
[1645295483440,3.11903,2751.5,2751.4,1.044]
[1645295484031,1.81903,2751.5,2751.4,1.044]
[1645295491920,0.90955,2751.5,2751.4,1.044]
[1645295492122,0.00341069,2751.9,2751.4,2.58804682]
[1645295492326,5.99457309,2752.4,2751.5,1.5439994]
[1645295492522,0.53377309,2752.4,2751.6,0.00332957]
[1645295492723,0.00341069,2751.9,2751.6,1.54725923]
[1645295492923,0.00341069,2751.9,2751.7,0.00332957]
[1645295493324,0.00341069,2751.9,2751.5,1.54729678]
[1645295493531,0.90912,2752.0,2751.5,0.00332957]
[1645295493727,0.90912,2752.0,2751.6,0.00332957]
[1645295493922,0.00341086,2751.9,2751.6,0.00332957]
[1645295494121,0.91264026,2751.9,2751.6,0.00332957]
[1645295494325,0.54490532,2751.7,2751.6,0.00332957]
[1645295494525,0.90935,2751.6,2751.5,0.00341145]
[1645295494772,0.90935,2751.6,2751.4,1.044]
[1645295495272,0.90935,2751.6,2751.5,0.00341135]
[1645295495871,0.90935,2751.6,2751.4,1.04732957]
[1645295496076,1.81883,2751.5,2751.4,1.044]
[1645295496271,1.81883,2751.5,2751.4,1.04741134]
[1645295496670,0.81883,2751.5,2751.4,1.04741134]
[1645295497273,0.81883,2751.5,2751.4,1.044]
[1645295498921,1.8188,2751.6,2751.4,1.044]
[1645295499521,0.90941,2751.6,2751.4,1.044]
[1645295499921,0.90941,2751.6,2751.4,1.04741136]
[1645295500726,0.90941,2751.6,2751.4,1.044]
[1645295501028,0.90941,2751.6,2751.4,1.04741136]
[1645295501230,2.72769,2751.8,2751.4,1.04741136]
[1645295501425,0.00341072,2751.9,2751.4,1.04741136]
[1645295501625,0.00341072,2751.9,2751.5,0.00332957]
[1645295502025,3.20757782,2752.1,2751.5,0.00332957]
[1645295502288,7.82194177,2752.9,2751.5,0.00332957]
[1645295502289,1.086e-05,2751.9,2751.7,11.04]
[1645295502488,1.086e-05,2751.9,2751.6,8.0127857]
[1645295502489,1.086e-05,2751.9,2751.8,17.76885308]
[1645295502688,0.90867,2753.4,2752.7,0.00078914]
[1645295502882,3.0447,2753.6,2752.7,0.00078914]
[1645295503282,3.0447,2753.6,2752.4,1.54392351]
[1645295503683,0.62203426,2753.5,2752.8,0.60427118]
[1645295504082,1.8837,2753.7,2752.8,0.60427118]
[1645295504289,2.84862335,2753.8,2752.9,3.5]
[1645295504485,1.5805,2754.2,2752.9,3.5]
[1645295504883,0.95876,2754.4,2752.9,3.5]
[1645295505283,0.61085401,2754.1,2752.9,3.5]
[1645295505482,0.61085401,2754.1,2753.0,1.543106]
[1645295505684,0.61085401,2754.1,2753.1,3.5]
[1645295506118,0.61085401,2754.1,2752.9,3.5]
[1645295506320,0.05034,2754.4,2753.0,12.5831235]
[1645295506524,0.05034,2754.4,2753.1,5.04308275]
[1645295506720,5.60880949,2754.5,2753.1,3.5]
[1645295507121,0.00340711,2753.8,2753.1,3.5]
[1645295507726,0.00340711,2753.8,2752.8,0.1814]
[1645295507924,0.03648581,2753.5,2752.8,0.1814]
[1645295509321,0.03648581,2753.5,2752.9,0.65435376]
[1645295509523,0.03648581,2753.5,2752.8,0.1814]
[1645295509524,0.0034074,2753.3,2752.8,0.1814]
[1645295509997,0.0034074,2753.3,2752.0,3.5]
[1645295510200,0.522,2753.2,2751.8,3.50332957]
[1645295510396,0.90906,2752.6,2751.6,0.00332957]
[1645295510693,0.50645523,2752.2,2751.6,0.01677467]
[1645295510891,0.90911,2752.1,2751.7,1.54376419]
[1645295511091,0.90911,2752.1,2751.7,0.00332957]
[1645295511892,0.00340807,2752.0,2751.7,0.00332957]
[1645295512595,0.00340807,2752.0,2751.7,0.0134451]
[1645295512596,0.91262807,2752.0,2751.7,0.0134451]
[1645295512794,0.90921,2751.8,2751.7,0.0134451]
[1645295513196,1.20921,2751.8,2751.7,0.0134451]
[1645295514327,0.90921,2751.8,2751.7,0.0134451]
[1645295515625,1.20921,2751.8,2751.7,0.0134451]
[1645295515826,3.03121,2751.8,2751.7,0.0134451]
[1645295516025,2.03121,2751.8,2751.7,0.0134451]
[1645295516326,3.03121,2751.8,2751.7,0.0134451]
[1645295517774,4.0,2751.7,2751.5,0.00673816]
[1645295517974,4.022,2751.6,2751.5,0.00340859]
[1645295518374,5.322,2751.6,2751.5,0.00340859]
[1645295518776,0.90953,2751.5,2751.4,0.944]
[1645295518975,2.43153,2751.5,2751.4,0.94740859]
[1645295519173,2.73153,2751.5,2751.4,0.94740859]
[1645295519374,6.73740663,2751.5,2751.4,0.94740859]
[1645295519975,6.73740663,2751.5,2751.4,0.944]
[1645295521422,3.23740663,2751.5,2751.4,0.944]
[1645295523719,2.93740663,2751.5,2751.4,0.944]
[1645295523921,1.93740663,2751.5,2751.4,0.944]
[1645295524321,0.90922,2751.7,2751.5,1.64713991]
[1645295524980,0.90922,2751.7,2751.5,1.65054848]
[1645295526076,0.90922,2751.7,2751.5,1.64713991]
[1645295526280,0.00340785,2752.0,2751.6,3.5]
[1645295526478,0.00340785,2752.0,2751.5,1.65054848]
[1645295526679,0.00340785,2752.0,2751.6,1.54397829]
[1645295526880,0.00340785,2752.0,2751.6,5.04397829]
[1645295527081,0.00340785,2752.0,2751.7,1.54397829]
[1645295527284,0.2365,2752.3,2751.7,1.54397829]
[1645295527285,0.2365,2752.3,2751.9,0.53276515]
[1645295528079,0.2365,2752.3,2751.6,3.5]
[1645295528280,0.2365,2752.3,2751.7,1.54380958]
[1645295528281,2.0546,2752.3,2751.7,1.54380958]
[1645295528540,2.0546,2752.3,2751.5,5.14859988]
[1645295528541,2.96371,2752.3,2751.5,5.14859988]
[1645295528739,2.05469,2752.3,2751.6,1.54389205]
[1645295528938,2.05469,2752.3,2751.6,2.08293019]
[1645295529145,2.05469,2752.3,2751.5,1.64859988]
[1645295529442,0.90909,2752.1,2751.5,1.64859988]
[1645295529640,1.8183,2752.1,2751.5,1.64713991]
[1645295529847,0.00340548,2752.0,2751.5,1.65054602]
[1645295530441,0.00340548,2752.0,2751.6,1.54396628]
[1645295530840,0.90909,2752.1,2751.5,2.24431549]
[1645295531041,0.00340541,2752.0,2751.5,2.24772153]
[1645295531242,0.00340541,2752.0,2751.6,1.54396274]
[1645295531842,0.00340541,2752.0,2751.5,2.24772153]
[1645295532174,0.00340541,2752.0,2751.6,1.54396139]
[1645295533175,0.90909,2752.1,2751.6,1.54396139]
[1645295533375,0.00340541,2752.0,2751.6,1.54396139]
[1645295534378,0.90909,2752.1,2751.6,1.54396139]
[1645295534579,0.00340541,2752.0,2751.6,1.54396139]
[1645295535578,0.90909,2752.1,2751.6,1.54396139]
[1645295535779,0.00340541,2752.0,2751.6,1.54396139]
[1645295536825,0.5402615,2751.7,2751.5,1.64713991]
[1645295537027,0.5402615,2751.7,2751.5,1.65054595]
[1645295538028,0.5402615,2751.7,2751.5,1.64713991]
[1645295538229,0.5402615,2751.7,2751.5,1.65054589]
[1645295538828,0.5402615,2751.7,2751.6,1.54399415]
[1645295539427,0.5402615,2751.7,2751.5,1.65054587]
[1645295539677,0.91252531,2752.0,2751.5,1.65054587]
[1645295539982,0.91252531,2752.0,2751.6,1.54396619]
[1645295539983,0.00340531,2752.0,2751.6,1.54396619]
[1645295540477,2.4311,2752.4,2751.6,1.54396619]
[1645295540683,2.7311,2752.4,2751.6,1.54257954]
[1645295541681,0.90905,2752.3,2751.6,1.54257954]
[1645295541881,0.00340269,2752.1,2751.6,1.54257954]
[1645295542080,0.60440367,2752.1,2751.6,1.54257954]
[1645295542881,0.60100098,2752.1,2751.6,1.54257954]
[1645295543082,0.0034027,2752.0,2751.6,1.54257954]
[1645295543538,0.0034027,2752.0,2751.7,3.5]
[1645295543736,0.0034027,2752.0,2751.7,14.54]
[1645295543933,2.02326,2753.4,2751.7,11.04]
[1645295544132,0.05036,2753.3,2751.8,3.6816]
[1645295544346,4.41041898,2753.6,2751.8,3.6816]
[1645295544347,0.94931898,2753.6,2752.6,5.0]
[1645295544533,1.0,2754.7,2753.4,0.54139022]
[1645295544534,0.48388027,2754.0,2753.4,0.54139022]
[1645295544733,1.0,2754.7,2753.4,0.54139022]
[1645295544931,1.0,2754.7,2753.3,0.11994998]
[1645295544932,1.0,2754.7,2753.3,1.02814998]
[1645295545141,1.0,2754.7,2753.3,0.11994998]
[1645295545332,1.0,2754.7,2753.3,3.61994998]
[1645295545736,0.90835,2754.4,2753.3,0.11994998]
[1645295545935,0.90835,2754.4,2753.2,1.64613117]
[1645295545936,0.51506422,2754.2,2753.2,1.64613117]
[1645295546135,1.4306,2754.1,2753.2,1.64613117]
[1645295546333,0.3,2754.0,2753.2,1.64613117]
[1645295546533,0.522,2753.9,2753.2,1.64613117]
[1645295546734,0.00339904,2753.8,2753.2,1.64613117]
[1645295546934,0.91217904,2753.8,2753.2,1.64613117]
[1645295547175,0.3,2753.7,2753.2,1.64613117]
[1645295547681,1.3,2753.7,2753.2,1.64613117]
[1645295547873,0.00339917,2753.6,2753.2,1.64613117]
[1645295548373,1.00339917,2753.6,2753.2,1.64613117]
[1645295548575,0.3,2753.5,2753.2,1.64613117]
[1645295548874,2.11755,2753.5,2753.2,1.64613117]
[1645295549074,2.1209492,2753.5,2753.2,1.64613117]
[1645295549277,3.1209492,2753.5,2753.2,1.64613117]
[1645295550078,0.9087,2753.4,2753.2,1.64613117]
[1645295550282,1.81745,2753.4,2753.2,1.64613117]
[1645295550940,2.726225,2753.4,2753.2,1.64613117]
[1645295551128,0.51284681,2753.3,2753.2,1.64613117]
[1645295553032,1.11284681,2753.3,2753.2,1.64613117]
[1645295553239,1.63484681,2753.3,2753.2,1.64613117]
[1645295553430,2.63484681,2753.3,2753.2,1.64613117]
[1645295555270,2.63484681,2753.3,2752.2,3.6815]
[1645295555271,0.90904,2753.0,2752.2,3.6815]
[1645295555577,0.9090202,2752.7,2752.2,0.1815]
[1645295556169,0.9090202,2752.7,2751.7,0.1816]
[1645295556170,0.00339586,2752.6,2751.7,0.1816]
[1645295556372,0.47375167,2752.3,2751.7,0.64599479]
[1645295556571,1.38280167,2752.3,2751.7,0.64599479]
[1645295557377,1.38280167,2752.3,2751.6,3.5]
[1645295557672,0.0033961,2752.1,2751.6,3.5]
[1645295558524,1.38280167,2752.3,2751.6,3.5]
[1645295558725,0.00339612,2752.0,2751.6,3.5]
[1645295559526,0.90911,2752.1,2751.6,3.6816]
[1645295559725,0.90911,2752.1,2751.6,0.1816]
[1645295559926,0.00339608,2752.0,2751.5,2.39606909]
[1645295560728,0.90911,2752.1,2751.6,1.54380954]
[1645295561125,0.00339605,2752.0,2751.6,1.54380954]
[1645295561926,1.38278167,2752.3,2751.6,1.54380954]
[1645295562183,0.00339608,2752.0,2751.6,1.54380954]
[1645295563280,0.90903,2752.3,2751.6,1.54380954]
[1645295563477,0.00339608,2752.0,2751.6,1.54380954]
[1645295563679,0.90917,2751.9,2751.6,1.54380954]
[1645295564479,1.8184,2752.1,2751.9,0.73770148]
[1645295564677,0.00339605,2752.0,2751.9,0.73770148]
[1645295565277,0.91261605,2752.0,2751.9,0.73770148]
[1645295565479,0.00339605,2752.0,2751.9,0.73770148]
[1645295565679,0.90919,2752.0,2751.9,0.73770148]
[1645295567822,0.90919,2752.0,2751.9,2.28161481]
[1645295570480,1.43108,2752.4,2751.9,2.28161481]
[1645295570481,0.90906,2752.2,2751.9,2.28161481]
[1645295570684,0.0033939,2752.1,2752.0,1.54391333]
[1645295571484,0.0033939,2752.1,2752.0,1.54386188]
[1645295571685,0.90906,2752.2,2752.0,1.54386188]
[1645295571882,0.91245385,2752.2,2752.0,1.54386188]
[1645295572883,0.90906,2752.2,2752.0,1.54386188]
[1645295573086,0.91245383,2752.2,2752.0,1.54386188]
[1645295573924,0.90906,2752.2,2752.0,1.54386188]
[1645295574327,0.91235353,2752.2,2752.0,1.54386188]
[1645295575125,0.90906,2752.2,2752.0,1.54386188]